bitfinex/quotes_BTCUSD_20251215
["timestamp","ask_amount","ask_price","bid_price","bid_amount"]
[1765773970210,0.00424102,89711.0,89710.0,0.04091681]
[1765773971241,0.00424102,89711.0,89710.0,0.001132]
[1765773971587,0.00424102,89711.0,89710.0,0.024742]
[1765773971785,0.00424102,89711.0,89710.0,0.040062]
[1765773976199,0.00024102,89711.0,89710.0,0.040062]
[1765773977432,0.00024102,89711.0,89710.0,0.08483019]
[1765773977667,0.00024102,89711.0,89710.0,0.047062]
[1765773978546,0.00024102,89711.0,89710.0,0.08682861]
[1765773979076,0.00024102,89711.0,89710.0,0.06321861]
[1765773979230,0.00024102,89711.0,89710.0,0.04789861]
[1765773980359,0.00024102,89711.0,89710.0,0.05821861]
[1765773980562,0.00024102,89711.0,89710.0,0.06121861]
[1765773980862,0.00024102,89711.0,89710.0,0.06321861]
[1765773983601,0.00024102,89711.0,89710.0,0.04789861]
[1765773990642,0.00024102,89711.0,89710.0,0.008132]
[1765773992028,0.00024102,89711.0,89710.0,0.04790821]
[1765773992246,0.00024102,89711.0,89710.0,0.008132]
[1765773993797,0.04081102,89711.0,89710.0,0.007]
[1765773994840,0.04081102,89711.0,89710.0,0.002]
[1765773995244,0.04081102,89711.0,89710.0,0.006]
[1765773995653,0.04081102,89711.0,89710.0,0.004]
[1765773995860,0.04081102,89711.0,89710.0,0.005]
[1765773996274,0.04081102,89711.0,89710.0,0.04478301]
[1765773997746,0.04081102,89711.0,89710.0,0.005]
[1765773997956,0.15207197,89711.0,89710.0,0.005]
[1765773998612,0.11126095,89709.0,89708.0,0.2340928]
[1765773998803,0.12777095,89709.0,89708.0,0.2340928]
[1765773999019,0.15183095,89709.0,89708.0,0.2340928]
[1765774000038,0.15583095,89709.0,89708.0,0.2340928]
[1765774000855,0.04457,89709.0,89708.0,0.2340928]
[1765774001081,0.004,89709.0,89708.0,0.2340928]
[1765774001491,0.04457,89709.0,89708.0,0.2340928]
[1765774004711,0.004,89709.0,89708.0,0.2340928]
[1765774005283,0.004,89709.0,89708.0,0.2744928]
[1765774006164,0.004,89709.0,89708.0,0.2756248]
[1765774006495,0.004,89709.0,89708.0,0.2874548]
[1765774006838,0.004,89709.0,89708.0,0.32723781]
[1765774007139,0.004,89709.0,89708.0,0.2874548]
[1765774008830,0.004,89709.0,89708.0,0.44877319]
[1765774009513,0.00024102,89711.0,89710.0,0.33424058]
[1765774009692,0.00024102,89711.0,89710.0,0.35197258]
[1765774009965,0.00024102,89711.0,89710.0,0.37577258]
[1765774010387,0.00024102,89711.0,89710.0,0.66647258]
[1765774010996,0.00024102,89711.0,89710.0,0.67247258]
[1765774012356,0.00024102,89711.0,89710.0,0.67547258]
[1765774013021,0.00024102,89711.0,89710.0,0.72549097]
[1765774013022,1.02e-06,89711.0,89710.0,0.72549097]
[1765774014590,1.02e-06,89711.0,89710.0,0.63179097]
[1765774014791,1.02e-06,89711.0,89710.0,0.74309097]
[1765774015281,1.02e-06,89711.0,89710.0,0.8896099]
[1765774016064,1.02e-06,89711.0,89710.0,0.9136699]
[1765774023707,1.02e-06,89711.0,89710.0,0.8023699]
[1765774025432,1.02e-06,89711.0,89710.0,0.85803988]
[1765774027241,1.02e-06,89711.0,89710.0,0.8023699]
[1765774027437,1.02e-06,89711.0,89710.0,0.9136699]
[1765774030309,1.02e-06,89711.0,89710.0,0.8960699]
[1765774030683,1.02e-06,89711.0,89710.0,0.9136699]
[1765774034296,1.02e-06,89711.0,89710.0,0.99319966]
[1765774034615,1.02e-06,89711.0,89710.0,0.9136699]
[1765774035252,1.02e-06,89711.0,89710.0,0.98419966]
[1765774035625,1.02e-06,89711.0,89710.0,0.99419966]
[1765774035941,1.02e-06,89711.0,89710.0,0.98719966]
[1765774036143,1.02e-06,89711.0,89710.0,0.9136699]
[1765774036361,1.02e-06,89711.0,89710.0,0.9176699]
[1765774048093,1.02e-06,89711.0,89710.0,0.8063699]
[1765774048886,1.02e-06,89711.0,89710.0,0.9176699]
[1765774049493,1.02e-06,89711.0,89710.0,0.8063699]
[1765774049673,1.02e-06,89711.0,89710.0,0.9176699]
[1765774050259,1.02e-06,89711.0,89710.0,0.9000699]
[1765774050513,1.02e-06,89711.0,89710.0,0.9176699]
[1765774054207,1.02e-06,89711.0,89710.0,0.7887699]
[1765774054407,1.02e-06,89711.0,89710.0,0.9176699]
[1765774054815,1.02e-06,89711.0,89710.0,0.85005151]
[1765774055015,1.02e-06,89711.0,89710.0,0.86765151]
[1765774055393,1.02e-06,89711.0,89710.0,0.85865151]
[1765774055597,1.02e-06,89711.0,89710.0,0.85465151]
[1765774055797,1.02e-06,89711.0,89710.0,0.86165151]
[1765774055997,1.02e-06,89711.0,89710.0,0.72655151]
[1765774056840,1.02e-06,89711.0,89710.0,0.73055151]
[1765774057372,1.02e-06,89711.0,89710.0,0.71955151]
[1765774057701,1.02e-06,89711.0,89710.0,0.75141151]
[1765774058895,1.02e-06,89711.0,89710.0,0.73381151]
[1765774059098,1.02e-06,89711.0,89710.0,0.78955313]
[1765774059301,1.02e-06,89711.0,89710.0,0.77295313]
[1765774060514,1.02e-06,89711.0,89710.0,0.69335151]
[1765774060714,1.02e-06,89711.0,89710.0,0.40265151]
[1765774062775,0.05245102,89711.0,89710.0,0.25613258]
[1765774062969,0.05245102,89711.0,89710.0,0.31582572]
[1765774063333,0.05245102,89711.0,89710.0,0.25613258]
[1765774063532,0.05245102,89711.0,89710.0,0.24813258]
[1765774063870,0.02795102,89711.0,89710.0,0.25413258]
[1765774064500,0.05245102,89711.0,89710.0,0.25413258]
[1765774064698,0.05245102,89711.0,89710.0,0.25300058]
[1765774066621,0.02795102,89711.0,89710.0,0.25300058]
[1765774067287,0.05245102,89711.0,89710.0,0.25300058]
[1765774067870,0.05245102,89711.0,89710.0,0.29278545]
[1765774068069,0.05245102,89711.0,89710.0,0.22894058]
[1765774068269,0.16371197,89711.0,89710.0,0.22894058]
[1765774068954,0.05245102,89711.0,89710.0,0.22794058]
[1765774069358,0.05245102,89711.0,89710.0,0.22894058]
[1765774069560,0.05293189,89711.0,89710.0,0.22394058]
[1765774069964,0.05293189,89711.0,89710.0,0.22894058]
[1765774070839,0.16419284,89711.0,89710.0,0.22894058]
[1765774071769,0.05293189,89711.0,89710.0,0.22894058]
[1765774074264,0.05293189,89711.0,89710.0,0.006]
[1765774074464,0.16419284,89711.0,89710.0,0.006]
[1765774075565,0.16419284,89711.0,89710.0,0.005]
[1765774075787,0.16419284,89711.0,89710.0,0.22294058]
[1765774076118,0.16519284,89711.0,89710.0,0.22294058]
[1765774077281,0.05393189,89711.0,89710.0,0.22294058]
[1765774077782,0.16519284,89711.0,89710.0,0.22294058]
[1765774082937,0.05393189,89711.0,89710.0,0.22294058]
[1765774088674,0.05393189,89711.0,89708.0,0.2340928]
[1765774088675,0.05393189,89711.0,89703.0,0.01114789]
[1765774088676,0.11126095,89706.0,89703.0,0.01114789]
[1765774088911,0.13452095,89704.0,89703.0,0.23410587]
[1765774089425,0.15749095,89704.0,89703.0,0.23410587]
[1765774089823,0.15749095,89704.0,89703.0,0.23510587]
[1765774090002,0.15749095,89704.0,89703.0,0.23410587]
[1765774090403,0.15749095,89704.0,89703.0,0.23810587]
[1765774090779,0.15749095,89704.0,89703.0,0.004]
[1765774091423,1.15749095,89704.0,89703.0,0.004]
[1765774092185,1.15749095,89704.0,89692.0,0.01114926]
[1765774092186,0.01114876,89696.0,89692.0,0.01114926]
[1765774092380,0.13927095,89693.0,89692.0,0.01114926]
[1765774092580,0.02801,89693.0,89691.0,0.01114939]
[1765774092840,0.11126095,89691.0,89689.0,0.22299278]
[1765774093282,0.0395,89690.0,89689.0,0.22299278]
[1765774093891,0.0395,89690.0,89686.0,0.23414923]
[1765774094109,0.0395,89689.0,89686.0,0.23414923]
[1765774094830,0.02801,89687.0,89686.0,0.23414923]
[1765774095392,0.05098,89687.0,89686.0,0.23414923]
[1765774095791,0.05098,89687.0,89686.0,0.005]
[1765774095953,0.22300024,89686.0,89682.0,0.0111505]
[1765774096155,0.01115013,89685.0,89682.0,0.0111505]
[1765774096503,0.12779095,89683.0,89682.0,0.23416069]
[1765774096865,0.01448,89687.0,89686.0,0.22300024]
[1765774096866,0.003,89687.0,89686.0,0.22300024]
[1765774097080,0.003,89687.0,89686.0,0.23928224]
[1765774097351,0.003,89687.0,89686.0,0.26406224]
[1765774097519,0.01148,89700.0,89699.0,0.22296792]
[1765774097752,0.02297,89706.0,89703.0,0.22295798]
[1765774097883,0.01808189,89711.0,89703.0,0.22295798]
[1765774097884,0.04105189,89711.0,89710.0,0.22294058]
[1765774098325,0.05758189,89711.0,89710.0,0.22294058]
[1765774099323,0.06358189,89711.0,89710.0,0.22294058]
[1765774100997,0.06358189,89711.0,89708.0,0.23409096]
[1765774101206,0.06358189,89711.0,89706.0,0.01114752]
[1765774101207,0.11126095,89707.0,89706.0,0.01114752]
[1765774101408,0.15076095,89707.0,89706.0,0.01114752]
[1765774103837,0.15676095,89707.0,89706.0,0.01114752]
[1765774108301,0.006,89707.0,89706.0,0.01114752]
[1765774109410,0.04661,89707.0,89706.0,0.01114752]
[1765774112346,0.04661,89707.0,89703.0,0.01114789]
[1765774112555,0.11126095,89703.0,89702.0,0.01114802]
[1765774112757,0.13949095,89703.0,89702.0,0.23410848]
[1765774112902,0.16400095,89703.0,89702.0,0.23410848]
[1765774114082,0.16900095,89703.0,89702.0,0.23410848]
[1765774118149,0.05774,89703.0,89702.0,0.01114802]
[1765774118517,0.03323,89703.0,89702.0,0.01114802]
[1765774118962,0.05774,89703.0,89702.0,0.01114802]
[1765774119161,0.01681,89703.0,89702.0,0.01114802]
[1765774119316,0.005,89703.0,89702.0,0.01114802]
[1765774125253,0.04593,89703.0,89702.0,0.01114802]
[1765774125456,0.15719095,89703.0,89702.0,0.01114802]
[1765774126509,0.15719095,89703.0,89693.0,0.51240252]
[1765774126510,0.11126095,89696.0,89695.0,0.2341266]
[1765774126803,0.13949095,89696.0,89695.0,0.2341266]
[1765774127009,0.16400095,89696.0,89695.0,0.2341266]
[1765774128021,0.16800095,89696.0,89695.0,0.2341266]
[1765774131308,0.16800095,89696.0,89695.0,0.01114889]
[1765774131731,0.11126095,89694.0,89693.0,0.23413004]
[1765774132046,0.11126095,89694.0,89690.0,0.03978487]
[1765774132047,0.01114914,89693.0,89690.0,0.03978487]
[1765774132270,0.01642,89691.0,89688.0,0.01114976]
[1765774132410,0.01114926,89692.0,89689.0,0.01114963]
[1765774132614,0.02451,89691.0,89689.0,0.01114963]
[1765774132811,0.02823,89690.0,89689.0,0.01114963]
[1765774133291,0.05274,89690.0,89689.0,0.01114963]
[1765774133437,0.05274,89690.0,89688.0,0.01114976]
[1765774133636,0.04093,89689.0,89688.0,0.01114976]
[1765774134554,0.04093,89689.0,89688.0,0.01614976]
[1765774134967,0.04093,89689.0,89688.0,0.01114976]
[1765774135196,0.04093,89689.0,89688.0,0.01314976]
[1765774135533,0.04093,89689.0,89688.0,0.01114976]
[1765774136113,0.04493,89689.0,89688.0,0.01114976]
[1765774136288,0.04493,89689.0,89688.0,0.01614976]
[1765774136584,0.04493,89689.0,89688.0,0.01114976]
[1765774136999,0.04493,89689.0,89688.0,0.02664976]
[1765774137000,0.004,89689.0,89688.0,0.02664976]
[1765774137186,0.004,89689.0,89688.0,0.05154976]
[1765774137542,0.01181,89696.0,89694.0,0.22298035]
[1765774138581,0.2340904,89709.0,89694.0,0.22298035]
[1765774138582,0.02432,89706.0,89701.0,0.22296295]
[1765774138821,0.02432,89706.0,89701.0,0.23411109]
[1765774139218,0.03613,89704.0,89701.0,0.23411109]
[1765774139611,0.03613,89704.0,89703.0,0.22295798]
[1765774139813,0.01181,89704.0,89703.0,0.22295798]
[1765774140792,0.01191,89712.0,89709.0,0.22294307]
[1765774141330,0.02480189,89711.0,89709.0,0.22294307]
[1765774142304,0.03080189,89711.0,89709.0,0.22294307]
[1765774142714,0.01652,89710.0,89709.0,0.22294307]
[1765774142915,0.04084,89710.0,89709.0,0.22294307]
[1765774143117,0.00648189,89711.0,89709.0,0.22294307]
[1765774144304,0.00600102,89711.0,89709.0,0.22407507]
[1765774144453,1.02e-06,89711.0,89710.0,0.0404]
[1765774144838,1.02e-06,89711.0,89710.0,0.0155]
[1765774145259,1.02e-06,89711.0,89710.0,0.0404]
[1765774145575,0.00400102,89711.0,89710.0,0.0155]
[1765774145776,0.00400102,89711.0,89709.0,0.22407507]
[1765774146045,0.01652,89710.0,89709.0,0.22407507]
[1765774146203,0.04084,89710.0,89709.0,0.22294307]
[1765774148613,0.04484,89710.0,89709.0,0.22294307]
[1765774150824,0.04532087,89710.0,89709.0,0.22294307]
[1765774161153,0.00448087,89710.0,89709.0,0.22294307]
[1765774163713,0.04532087,89710.0,89709.0,0.22294307]
[1765774164111,0.04532087,89710.0,89707.0,0.0111474]
[1765774164296,0.01652,89708.0,89707.0,0.23409544]
[1765774164452,0.01652,89708.0,89707.0,0.0111474]
[1765774164649,0.15210095,89708.0,89707.0,0.0111474]
[1765774164972,0.15210095,89708.0,89705.0,0.234099]
[1765774164973,0.04084,89708.0,89705.0,0.234099]
[1765774165174,0.12778095,89706.0,89705.0,0.234099]
[1765774165561,0.15210095,89706.0,89705.0,0.234099]
[1765774166387,0.11126095,89704.0,89701.0,0.01114814]
[1765774166574,0.02843,89702.0,89701.0,0.23411109]
[1765774167110,0.05237,89702.0,89701.0,0.23411109]
[1765774167523,0.05237,89702.0,89701.0,0.23611109]
[1765774168020,0.05237,89702.0,89701.0,0.24111109]
[1765774168657,0.05237,89702.0,89701.0,0.007]
[1765774168658,0.16363095,89702.0,89701.0,0.007]
[1765774168899,0.02843,89702.0,89701.0,0.005]
[1765774169026,0.05251,89702.0,89701.0,0.007]
[1765774169431,0.05251,89702.0,89701.0,0.22296295]
[1765774169634,0.01191102,89711.0,89708.0,0.22294555]
[1765774170501,0.02456087,89710.0,89708.0,0.22294555]
[1765774171026,0.01643,89709.0,89708.0,0.22294555]
[1765774171434,0.04051,89709.0,89708.0,0.22294555]
[1765774172442,0.15177095,89709.0,89708.0,0.22294555]
[1765774172883,0.15777095,89709.0,89708.0,0.22294555]
[1765774183373,0.15777095,89709.0,89707.0,0.0111474]
[1765774183538,0.02408,89708.0,89707.0,0.0111474]
[1765774183828,0.04051,89708.0,89707.0,0.0111474]
[1765774185268,0.04551,89708.0,89707.0,0.0111474]
[1765774186700,0.05682,89708.0,89707.0,0.0111474]
[1765774196970,0.01631,89708.0,89707.0,0.0111474]
[1765774197353,0.04101,89708.0,89707.0,0.0111474]
[1765774199185,0.005,89708.0,89707.0,0.0111474]
[1765774199390,0.005,89708.0,89707.0,0.0613174]
[1765774199520,0.005,89708.0,89707.0,0.0210074]
[1765774199920,0.00048087,89710.0,89708.0,0.22294555]
[1765774201112,0.00548087,89710.0,89708.0,0.22294555]
[1765774201526,0.005,89710.0,89709.0,0.04031]
[1765774201721,0.005,89710.0,89708.0,0.26386242]
[1765774202489,0.005,89710.0,89708.0,0.22407755]
[1765774202726,0.02722,89709.0,89708.0,0.22407755]
[1765774202997,0.02722,89709.0,89704.0,0.03978487]
[1765774202998,0.05192,89709.0,89704.0,0.03978487]
[1765774203175,0.05192,89709.0,89703.0,0.01114789]
[1765774203176,0.11126095,89704.0,89703.0,0.01114789]
[1765774203379,0.13848095,89704.0,89703.0,0.01114789]
[1765774203581,0.16318095,89704.0,89703.0,0.01114789]
[1765774203957,0.05192,89704.0,89703.0,0.01114789]
[1765774204772,0.05592,89704.0,89703.0,0.01114789]
[1765774205372,0.05592,89704.0,89703.0,0.05093276]
[1765774205774,0.05592,89704.0,89703.0,0.01114789]
[1765774206002,0.05192,89704.0,89703.0,0.01114789]
[1765774206397,0.05692,89704.0,89703.0,0.01114789]
[1765774206847,0.03222,89704.0,89703.0,0.01114789]
[1765774208437,0.01711,89704.0,89703.0,0.01114789]
[1765774209911,0.04181,89704.0,89703.0,0.01114789]
[1765774210115,0.05692,89704.0,89703.0,0.01114789]
[1765774210497,0.03222,89704.0,89703.0,0.01114789]
[1765774211275,0.05692,89704.0,89703.0,0.01114789]
[1765774216808,0.005,89704.0,89703.0,0.01114789]
[1765774217957,0.01211,89709.0,89707.0,0.22294804]
[1765774218159,0.03681,89709.0,89707.0,0.22294804]
[1765774218360,0.03981,89708.0,89707.0,0.22294804]
[1765774219865,0.04481,89708.0,89707.0,0.22294804]
[1765774226081,0.04481,89708.0,89706.0,0.01114752]
[1765774226399,0.03981,89707.0,89706.0,0.01114752]
[1765774226580,0.03981,89707.0,89704.0,0.23410326]
[1765774226802,0.01511,89705.0,89703.0,0.01114789]
[1765774226948,0.02741,89704.0,89703.0,0.01114789]
[1765774227509,0.05107,89704.0,89703.0,0.01114789]
[1765774228046,0.05507,89704.0,89703.0,0.01114789]
[1765774229268,0.03141,89704.0,89703.0,0.01114789]
[1765774231045,0.03141,89704.0,89696.0,0.06955314]
[1765774231046,1.0,89698.0,89696.0,0.23412414]
[1765774231179,0.01114789,89703.0,89696.0,0.23412414]
[1765774231180,1.13877095,89697.0,89696.0,0.23412414]
[1765774231741,1.16212095,89697.0,89696.0,0.23412414]
[1765774233510,1.16712095,89697.0,89696.0,0.01114876]
[1765774234846,1.16712095,89697.0,89696.0,0.23412414]
[1765774235171,1.16712095,89697.0,89696.0,0.01114876]
[1765774235319,0.11126095,89695.0,89694.0,0.01114901]
[1765774235531,0.12681095,89695.0,89694.0,0.23412936]
[1765774235772,0.15016095,89695.0,89694.0,0.23412936]
[1765774236016,0.15016095,89695.0,89694.0,0.01114901]
[1765774236576,0.15416095,89695.0,89694.0,0.01114901]
[1765774237374,0.15416095,89695.0,89694.0,0.23412936]
[1765774237891,0.15616095,89695.0,89694.0,0.23412936]
[1765774240549,0.15616095,89695.0,89694.0,0.27444136]
[1765774240550,0.006,89695.0,89694.0,0.27444136]
[1765774240766,0.006,89695.0,89694.0,0.36761501]
[1765774240972,0.006,89695.0,89694.0,0.30792187]
[1765774241176,0.002,89695.0,89694.0,0.36359185]
[1765774241501,0.02335,89720.0,89710.0,0.22294058]
[1765774243886,0.00400102,89711.0,89710.0,0.22294058]
[1765774244325,0.00500102,89711.0,89710.0,0.22294058]
[1765774245188,0.05586102,89711.0,89710.0,0.22294058]
[1765774245407,0.05586102,89711.0,89710.0,0.23408686]
[1765774245627,0.05634189,89711.0,89708.0,0.23409101]
[1765774245848,0.12729182,89709.0,89706.0,0.01114752]
[1765774246070,0.11174182,89709.0,89707.0,0.22294804]
[1765774246284,0.02335,89708.0,89707.0,0.22294804]
[1765774246535,0.0389,89708.0,89707.0,0.22294804]
[1765774247593,0.0419,89708.0,89707.0,0.22294804]
[1765774247801,0.04338087,89708.0,89707.0,0.22294804]
[1765774255505,0.04338087,89708.0,89706.0,0.01114752]
[1765774255703,0.0389,89707.0,89706.0,0.01114752]
[1765774257080,0.0399,89707.0,89706.0,0.01114752]
[1765774257284,0.001,89707.0,89706.0,0.01114752]
[1765774257427,0.01922,89707.0,89706.0,0.01114752]
[1765774257633,0.04324,89707.0,89706.0,0.01114752]
[1765774259350,0.04324,89707.0,89704.0,0.22295353]
[1765774259351,0.04324,89707.0,89704.0,0.23410326]
[1765774259555,0.0276,89705.0,89704.0,0.23410326]
[1765774259968,0.05162,89705.0,89704.0,0.23410326]
[1765774261467,0.0276,89705.0,89704.0,0.23410326]
[1765774261682,0.01238,89705.0,89704.0,0.23410326]
[1765774262071,0.11683095,89713.0,89704.0,0.23410326]
[1765774262072,1.02e-06,89711.0,89710.0,0.22294058]
[1765774262438,0.00557,89713.0,89710.0,0.22294058]
[1765774262439,0.00557,89713.0,89712.0,0.674954]
[1765774262639,0.00557,89713.0,89712.0,0.691516]
[1765774262776,0.00557,89713.0,89712.0,0.714926]
[1765774264121,0.0002,89750.0,89749.0,0.2228437]
[1765774265120,0.02422,89750.0,89749.0,0.2228437]
[1765774265343,0.03944,89750.0,89749.0,0.2228437]
[1765774266573,0.04744,89750.0,89749.0,0.2228437]
[1765774267365,0.0082,89750.0,89749.0,0.2228437]
[1765774268173,0.0052,89750.0,89749.0,0.2228437]
[1765774268372,0.00137442,89750.0,89749.0,0.2228437]
[1765774269786,0.00137442,89750.0,89749.0,0.2248437]
[1765774272332,0.00137442,89750.0,89749.0,0.2648157]
[1765774273232,0.00137442,89750.0,89749.0,0.2414057]
[1765774273806,0.00137442,89750.0,89749.0,0.2648157]
[1765774279716,0.00137442,89750.0,89749.0,0.2746757]
[1765774280883,0.00137442,89750.0,89749.0,0.3859757]
[1765774282499,0.00137442,89750.0,89749.0,0.53249463]
[1765774283527,0.00137442,89750.0,89749.0,0.42119463]
[1765774285261,0.00137442,89750.0,89749.0,0.53249463]
[1765774289671,0.01238,89775.0,89770.0,0.22279157]
[1765774289787,0.01238,89775.0,89774.0,0.22278165]
[1765774290967,0.03273,89775.0,89774.0,0.22278165]
[1765774291267,0.05588,89775.0,89774.0,0.22278165]
[1765774291474,0.05588,89775.0,89769.0,0.0111397]
[1765774291475,0.01113908,89774.0,89767.0,0.22279888]
[1765774291676,0.01635,89771.0,89770.0,0.01113957]
[1765774291888,0.01635,89771.0,89765.0,0.01114019]
[1765774291889,0.02786,89769.0,89766.0,0.23394042]
[1765774292024,0.02786,89769.0,89765.0,0.23394417]
[1765774292025,0.01635,89766.0,89765.0,0.23394417]
[1765774292464,0.0395,89766.0,89765.0,0.23394417]
[1765774292666,0.01199087,89769.0,89767.0,0.22279902]
[1765774293042,0.00048087,89769.0,89767.0,0.22279902]
[1765774293640,0.01238,89775.0,89774.0,0.22278165]
[1765774294308,0.01238,89778.0,89777.0,0.2227742]
[1765774294500,0.01165,89784.0,89775.0,0.01113895]
[1765774294501,0.01165,89784.0,89781.0,0.22276428]
[1765774294805,0.01165,89784.0,89781.0,0.23390249]
[1765774294806,0.03528087,89784.0,89781.0,0.23390249]
[1765774294979,0.03528087,89784.0,89783.0,0.22275931]
[1765774295178,0.01213087,89784.0,89783.0,0.22275931]
[1765774295380,0.02848087,89784.0,89783.0,0.22275931]
[1765774295595,0.02886394,89784.0,89783.0,0.22275931]
[1765774295778,0.05303719,89784.0,89783.0,0.22275931]
[1765774296775,0.01753719,89784.0,89783.0,0.22275931]
[1765774296991,0.05703719,89784.0,89783.0,0.22275931]
[1765774298333,0.01753719,89784.0,89783.0,0.22275931]
[1765774299544,0.01753719,89784.0,89783.0,0.22389131]
[1765774299545,0.00540632,89784.0,89783.0,0.22389131]
[1765774299738,0.00540632,89784.0,89783.0,0.37528131]
[1765774301247,0.00140632,89784.0,89783.0,0.37528131]
[1765774301448,0.00140632,89784.0,89783.0,0.38028131]
[1765774302000,0.00440632,89784.0,89783.0,0.38028131]
[1765774302381,0.00140632,89784.0,89783.0,0.38028131]
[1765774302707,0.00140632,89784.0,89783.0,0.38328131]
[1765774303298,0.00140632,89784.0,89783.0,0.27198131]
[1765774303503,0.00140632,89784.0,89783.0,0.24824131]
[1765774303901,0.00140632,89784.0,89783.0,0.27198131]
[1765774306114,0.00140632,89784.0,89783.0,0.41850024]
[1765774307139,0.00140632,89784.0,89783.0,0.52980024]
[1765774308041,0.00140632,89784.0,89783.0,0.57981863]
[1765774310099,0.0002,89793.0,89783.0,0.57981863]
[1765774310100,0.0002,89793.0,89792.0,0.22273699]
[1765774310217,0.0002,89793.0,89792.0,0.36340742]
[1765774310413,0.0002,89793.0,89792.0,0.38714742]
[1765774311675,0.0002,89793.0,89792.0,0.39014742]
[1765774311902,0.0002,89793.0,89792.0,0.66324742]
[1765774312104,0.0002,89793.0,89792.0,0.68584742]
[1765774312702,0.0002,89793.0,89792.0,0.68284742]
[1765774313014,0.0002,89793.0,89792.0,0.68784742]
[1765774313586,0.0002,89800.0,89799.0,0.27273801]
[1765774313777,0.0002,89800.0,89799.0,0.69222001]
[1765774313988,0.0002,89800.0,89799.0,0.71596001]
[1765774314195,0.02264213,89830.0,89802.0,0.67473057]
[1765774314389,0.02264213,89830.0,89802.0,0.70981257]
[1765774314390,0.01151,89823.0,89802.0,0.70981257]
[1765774314558,0.01151,89823.0,89802.0,0.73355257]
[1765774314764,0.01113312,89822.0,89802.0,0.60465257]
[1765774314965,0.01151,89816.0,89802.0,0.73355257]
[1765774315350,0.01151,89816.0,89802.0,0.66593418]
[1765774315746,0.01151,89822.0,89802.0,0.66593418]
[1765774315946,0.01151,89822.0,89802.0,0.66893418]
[1765774316144,0.01151,89823.0,89802.0,0.71895257]
[1765774316356,0.01151,89830.0,89802.0,0.71895257]
[1765774316357,0.00066158,89803.0,89802.0,0.71895257]
[1765774317242,0.00066158,89803.0,89802.0,0.72495257]
[1765774317858,0.00770807,89836.0,89802.0,0.72495257]
[1765774317859,0.00770807,89836.0,89803.0,0.34071839]
[1765774318061,0.00770807,89836.0,89802.0,0.61365257]
[1765774318062,0.00770807,89836.0,89835.0,0.36130237]
[1765774318680,0.00770807,89836.0,89835.0,0.001132]
[1765774318881,0.00770807,89836.0,89825.0,0.22265426]
[1765774318882,0.01113176,89833.0,89825.0,0.01113275]
[1765774319081,0.01113176,89833.0,89821.0,0.26722329]
[1765774319082,0.01113176,89833.0,89819.0,0.0111335]
[1765774319083,0.01113251,89827.0,89819.0,0.0111335]
[1765774319321,0.22263838,89832.0,89819.0,0.0111335]
[1765774319322,0.01113226,89829.0,89822.0,0.01113312]
[1765774319533,0.01113251,89827.0,89820.0,0.03568337]
[1765774319738,0.01113251,89827.0,89819.0,0.0111335]
[1765774319739,0.23379513,89823.0,89819.0,0.0111335]
[1765774319963,0.01161387,89823.0,89819.0,0.0111335]
[1765774320178,0.00048087,89823.0,89819.0,0.0111335]
[1765774320396,0.00048087,89823.0,89813.0,0.15345]
[1765774320397,0.00048087,89823.0,89804.0,0.02455]
[1765774320398,0.01508,89820.0,89804.0,0.02455]
[1765774320646,0.02451,89822.0,89803.0,0.00986]
[1765774320647,0.01113486,89808.0,89803.0,0.03859548]
[1765774320861,0.01113474,89809.0,89803.0,0.02099548]
[1765774321086,0.01113474,89809.0,89800.0,0.23257558]
[1765774321087,0.22269076,89811.0,89800.0,0.24371192]
[1765774321088,0.01113511,89806.0,89800.0,0.24371192]
[1765774321231,0.01143,89807.0,89804.0,0.01113536]
[1765774321445,0.25833525,89811.0,89804.0,0.01113536]
[1765774321446,0.01113449,89811.0,89806.0,0.02751511]
[1765774321644,0.01113424,89813.0,89806.0,0.02751511]
[1765774321645,0.01113474,89809.0,89806.0,0.01638]
[1765774322060,0.01113436,89812.0,89806.0,0.23908096]
[1765774322264,0.01113436,89812.0,89804.0,0.001132]
[1765774322265,0.01113486,89808.0,89804.0,0.001132]
[1765774322627,0.02451,89818.0,89800.0,0.35701173]
[1765774322628,0.01113548,89803.0,89800.0,0.002]
[1765774322829,0.01113536,89804.0,89802.0,0.22271145]
[1765774322830,0.01508,89804.0,89802.0,0.22271145]
[1765774323000,0.22268415,89814.0,89802.0,0.22271145]
[1765774323001,0.01228,89812.0,89809.0,0.01113474]
[1765774323203,0.01228,89812.0,89809.0,0.23382814]
[1765774323406,0.00024062,89811.0,89809.0,0.01113474]
[1765774323567,0.01508,89810.0,89808.0,0.01113486]
[1765774323779,0.01508,89810.0,89806.0,0.01113511]
[1765774323780,0.02451,89810.0,89806.0,0.01113511]
[1765774324020,0.00024062,89811.0,89808.0,0.01113486]
[1765774324655,0.01137511,89811.0,89807.0,0.01113498]
[1765774325058,0.02475062,89811.0,89809.0,0.22269483]
[1765774325266,0.02575062,89811.0,89809.0,0.22269483]
[1765774325725,0.02475062,89811.0,89809.0,0.22269483]
[1765774325885,0.01508,89810.0,89809.0,0.22269483]
[1765774326087,0.02475062,89811.0,89809.0,0.22269483]
[1765774326088,0.00124062,89811.0,89809.0,0.22269483]
[1765774326294,0.00124062,89811.0,89810.0,0.02226923]
[1765774326524,0.04083062,89811.0,89808.0,0.01113486]
[1765774326853,0.00124062,89811.0,89808.0,0.01113486]
[1765774327069,0.00124062,89811.0,89809.0,0.22269483]
[1765774327291,0.00024062,89811.0,89809.0,0.22269483]
[1765774327754,0.00024062,89811.0,89810.0,0.17449923]
[1765774327755,0.00124062,89811.0,89810.0,0.17449923]
[1765774328178,0.00024062,89811.0,89810.0,0.001132]
[1765774328532,0.00124062,89811.0,89810.0,0.001132]
[1765774328936,0.00024062,89811.0,89810.0,0.03978123]
[1765774329139,0.00024062,89811.0,89810.0,0.042062]
[1765774329348,0.00024062,89811.0,89810.0,0.017512]
[1765774330360,0.00024062,89811.0,89810.0,0.021512]
[1765774330567,0.00024062,89811.0,89810.0,0.15193069]
[1765774330855,0.00024062,89811.0,89810.0,0.76806801]
[1765774331168,0.00024062,89811.0,89810.0,0.74579878]
[1765774332149,0.00024062,89811.0,89810.0,0.74979878]
[1765774332542,0.00024062,89811.0,89810.0,0.74579878]
[1765774332979,0.00024062,89811.0,89810.0,0.75379878]
[1765774335727,0.00024062,89811.0,89810.0,0.79355831]
[1765774336048,0.00024062,89811.0,89810.0,0.75379878]
[1765774336750,0.00024062,89811.0,89810.0,0.7934525]
[1765774337277,0.00024062,89811.0,89810.0,0.75379878]
[1765774337473,0.00024062,89811.0,89810.0,0.79345965]
[1765774337679,0.00024062,89811.0,89810.0,0.75379878]
[1765774337911,0.00024062,89811.0,89810.0,0.79346344]
[1765774338111,0.00024062,89811.0,89810.0,0.75379878]